bitfinex-derivatives/quotes_SOLF0:USTF0_20220106
["timestamp","ask_amount","ask_price","bid_price","bid_amount"]
[1641468735790,6.76521327,147.75,147.63,27.66479]
[1641468735791,3.82679495,147.74,147.63,27.66479]
[1641468735989,3.82679495,147.74,147.68,4.0]
[1641468736190,3.82679495,147.74,147.7,27.66479]
[1641468736690,3.82679495,147.74,147.68,27.66479]
[1641468737094,3.82679495,147.74,147.68,16.18560841]
[1641468737292,3.82679495,147.74,147.68,20.18560841]
[1641468737491,27.66479,147.8,147.69,4.0]
[1641468737895,3.82579746,147.79,147.69,4.0]
[1641468738093,3.82579746,147.79,147.68,20.18560841]
[1641468738296,3.82579746,147.79,147.69,4.0]
[1641468738494,3.82579746,147.79,147.68,20.18560841]
[1641468738695,3.82579746,147.79,147.68,16.18560841]
[1641468739897,3.82579746,147.79,147.68,20.18560841]
[1641468740297,3.82579746,147.79,147.69,4.0]
[1641468741597,3.82579746,147.79,147.68,16.18560841]
[1641468741897,3.82579746,147.79,147.71,4.0]
[1641468742098,3.82579746,147.79,147.72,4.0]
[1641468742300,3.82579746,147.8,147.73,27.66479]
[1641468743199,3.82579746,147.84,147.73,37.71579]
[1641468743402,3.82579746,147.84,147.73,33.71579]
[1641468744599,3.82579746,147.84,147.73,37.71579]
[1641468744801,3.82579746,147.84,147.73,33.71579]
[1641468745000,3.82579746,147.84,147.73,37.71579]
[1641468745299,3.82579746,147.84,147.73,27.66479]
[1641468746100,26.77679051,147.84,147.73,27.66479]
[1641468746600,4.0,147.83,147.69,6.76041103]
[1641468746802,4.0,147.82,147.66,13.96]
[1641468747000,6.76315434,147.79,147.66,13.96]
[1641468747201,6.7624683,147.81,147.66,6.31032811]
[1641468747402,6.7624683,147.81,147.67,4.0]
[1641468747601,3.82579746,147.8,147.68,4.0]
[1641468747801,3.82579746,147.8,147.67,4.0]
[1641468748201,27.66479,147.77,147.69,27.66479]
[1641468748402,27.66479,147.79,147.69,27.66479]
[1641468748901,3.82579746,147.78,147.69,27.66479]
[1641468752811,6.76406926,147.77,147.67,27.66479]
[1641468753007,10.76406926,147.77,147.65,63.256]
[1641468753209,10.76406926,147.77,147.61,6.76406926]
[1641468753210,3.82579746,147.76,147.61,6.76406926]
[1641468753712,6.76567099,147.74,147.6,31.9448]
[1641468753911,10.76567099,147.74,147.6,31.9448]
[1641468754111,3.82579746,147.73,147.6,31.9448]
[1641468754311,7.82579746,147.73,147.6,31.9448]
[1641468754511,7.82579746,147.73,147.61,27.66479]
[1641468754512,27.66479,147.72,147.61,27.66479]
[1641468755114,3.82579746,147.71,147.61,27.66479]
[1641468755912,3.82579746,147.71,147.62,4.0]
[1641468756315,3.82579746,147.74,147.63,10.76292564]
[1641468756514,3.82579746,147.74,147.66,27.66479]
[1641468757315,3.82579746,147.75,147.66,27.66479]
[1641468758216,14.11792014,147.74,147.66,27.66479]
[1641468758917,3.82579746,147.73,147.66,27.66479]
[1641468759817,17.9437176,147.73,147.66,27.66479]
[1641468760418,3.82579746,147.72,147.66,27.66479]
[1641468760617,17.9437176,147.72,147.66,27.66479]
[1641468761218,14.11792014,147.72,147.66,27.66479]
[1641468762517,14.11792014,147.73,147.66,27.66479]
[1641468763319,14.11792014,147.72,147.66,27.66479]
[1641468764722,14.11792014,147.72,147.66,31.66479]
[1641468764920,14.11792014,147.72,147.66,55.32958]
[1641468765420,14.11792014,147.72,147.66,59.32958]
[1641468765622,14.11792014,147.72,147.66,55.32958]
[1641468767023,14.11792014,147.72,147.67,4.0]
[1641468767323,14.11792014,147.72,147.66,59.32958]
[1641468768022,8.52812014,147.72,147.67,4.0]
[1641468768223,49.86770991,147.76,147.71,4.0]
[1641468768625,49.86770991,147.76,147.7,6.75972556]
[1641468768626,22.64400991,147.76,147.73,6.75835502]
[1641468768826,4.29876847,147.78,147.74,4.0]
[1641468769026,3.65885519,147.79,147.77,4.0]
[1641468769225,3.65885519,147.79,147.78,4.0]
[1641468769825,56.79948488,147.82,147.77,4.0]
[1641468770026,94.52177526,147.86,147.76,4.0]
[1641468770226,6.75835502,147.9,147.76,4.0]
[1641468770426,6.75835502,147.9,147.78,4.0]
[1641468770628,3.8228712,147.89,147.78,6.391]
[1641468770827,3.8228712,147.89,147.84,27.66479]
[1641468771429,7.22759979,147.89,147.84,27.66479]
[1641468772029,3.8228712,147.88,147.84,27.66479]
[1641468772428,7.22759979,147.88,147.84,16.19714506]
[1641468772627,3.40472859,147.88,147.84,16.19714506]
[1641468772927,27.66479,147.91,147.84,16.19714506]
[1641468774028,3.3916114,147.9,147.84,16.19714506]
[1641468774829,27.66479,147.94,147.84,16.19714506]
[1641468775229,3.82195205,147.93,147.84,16.19714506]
[1641468775429,3.82195205,147.93,147.81,91.11569]
[1641468775430,4.0,147.92,147.81,91.11569]
[1641468776030,3.82195205,147.91,147.81,91.11569]
[1641468776234,3.82195205,147.91,147.81,27.66479]
[1641468776430,7.20737799,147.91,147.81,27.66479]
[1641468776831,3.82195205,147.9,147.81,27.66479]
[1641468777232,7.20737799,147.9,147.81,27.66479]
[1641468777432,7.20737799,147.9,147.81,34.4197211]
[1641468777632,3.38542594,147.9,147.81,34.4197211]
[1641468778240,3.38542594,147.93,147.81,34.4197211]
[1641468778840,3.82228195,147.92,147.81,34.4197211]
[1641468780043,3.38542594,147.91,147.81,34.4197211]
[1641468781545,3.38542594,147.93,147.81,34.4197211]
[1641468781944,4.71061632,147.9,147.81,34.4197211]
[1641468782342,4.71061632,147.9,147.81,6.7549311]
[1641468783143,4.71061632,147.9,147.82,27.66479]
[1641468784042,4.71061632,147.9,147.81,6.7549311]
[1641468785144,4.71061632,147.9,147.81,34.4197211]
[1641468786044,4.71061632,147.9,147.81,6.7549311]
[1641468786444,4.71061632,147.89,147.81,6.7549311]
[1641468787044,4.71061632,147.89,147.81,34.4197211]
[1641468788545,4.71061632,147.89,147.82,4.0]
[1641468788745,4.71061632,147.89,147.85,4.0]
[1641468788947,34.0516,147.99,147.87,4.0]
[1641468789147,27.66479,147.97,147.89,27.66479]
[1641468791651,27.66479,147.97,147.9,6.75082698]
[1641468793058,37.7321627,148.04,147.95,27.66479]
[1641468793454,27.66479,148.05,147.95,27.66479]
[1641468793654,37.8121627,148.06,147.96,4.0]
[1641468793856,37.8121627,148.06,147.99,6.74672784]
[1641468794057,37.8121627,148.06,148.01,6.74559007]
[1641468794457,0.08,148.06,148.01,6.74559007]
[1641468794657,0.08,148.06,147.97,6.74741068]
[1641468795061,0.08,148.06,148.02,27.66479]
[1641468796259,0.08,148.06,148.02,31.66479]
[1641468796559,0.08,148.06,148.05,6.74377044]
[1641468797159,0.08,148.06,148.05,34.40856044]
[1641468797564,0.08,148.06,148.05,27.66479]
[1641468799764,0.08,148.06,148.05,16.21463563]
[1641468799962,0.08,148.06,148.02,27.66479]
[1641468800166,4.0,148.05,148.02,27.66479]
[1641468800363,4.0,148.05,147.96,32.2143]
[1641468800766,9.95,148.06,147.96,32.2143]
[1641468801069,5.95,148.06,147.97,34.41220068]
[1641468801267,0.08,148.06,147.97,34.41220068]
[1641468802566,0.08,148.06,148.01,6.74581759]
[1641468803168,0.08,148.06,148.01,34.41060759]
[1641468803368,0.08,148.05,148.01,34.41060759]
[1641468804276,0.08,148.05,147.98,6.74695544]
[1641468804472,4.0,148.04,147.96,32.2143]
[1641468804672,7.096,148.05,147.92,26.99419625]
[1641468804673,4.0,148.03,147.92,26.99419625]
[1641468804973,4.0,148.02,147.92,26.99419625]
[1641468805172,31.66479,148.02,147.92,54.65898625]
[1641468805775,27.66479,148.02,147.92,54.65898625]
[1641468806374,0.08,148.05,147.92,54.65898625]
[1641468806575,4.0,148.02,147.95,6.74854906]
[1641468807175,4.0,148.02,147.96,27.66479]
[1641468807475,4.0,148.02,147.96,20.02979625]
[1641468808176,0.08,148.05,147.96,20.02979625]
[1641468808376,0.08,148.05,147.96,24.02979625]
[1641468808578,0.08,148.05,147.96,33.38988991]
[1641468808976,0.08,148.05,147.97,6.74763833]
[1641468809676,0.08,148.05,147.97,10.74763833]
[1641468810178,0.08,148.05,147.97,6.74763833]
[1641468810481,0.08,148.05,148.0,6.74604513]
[1641468810679,0.08,148.05,148.01,32.0972]
[1641468811381,0.08,148.05,148.02,27.66479]
[1641468811581,0.08,148.05,147.98,66.4145]
[1641468812780,0.08,148.05,147.99,6.74650025]
[1641468813181,0.08,148.05,147.98,66.4145]
[1641468813380,0.08,148.05,147.99,27.66479]
[1641468813983,0.08,148.05,148.01,6.74581759]
[1641468817288,0.08,148.05,148.02,27.66479]
[1641468819291,0.08,148.05,148.04,27.66479]
[1641468820905,0.08,148.05,148.02,27.66479]
[1641468824497,0.08,148.05,147.99,27.66479]
[1641468826000,14.18486104,148.05,147.99,27.66479]
[1641468827000,0.08,148.05,147.99,27.66479]
[1641468828505,14.18486104,148.05,147.99,27.66479]
[1641468830705,0.08,148.05,147.99,27.66479]
[1641468831506,3.39980485,148.04,147.99,27.66479]
[1641468832105,0.08,148.05,147.97,6.74763833]
[1641468832307,4.0,148.04,147.96,60.51799]
[1641468832709,4.0,148.04,147.96,27.66479]
[1641468832909,4.0,148.03,147.96,27.66479]
[1641468833110,4.0,148.0,147.92,14.10486104]
[1641468833309,4.0,147.99,147.92,14.10486104]
[1641468833509,31.66479,147.99,147.92,14.10486104]
[1641468833712,4.0,147.97,147.92,14.10486104]
[1641468834311,4.0,147.97,147.9,27.66479]
[1641468834512,7.39980485,147.98,147.9,27.66479]
[1641468834713,3.39980485,147.98,147.9,27.66479]
[1641468835715,7.39980485,147.98,147.9,27.66479]
[1641468835914,3.39980485,147.98,147.9,27.66479]
[1641468836114,17.50466589,147.98,147.9,27.66479]
[1641468836314,21.50466589,147.98,147.9,27.66479]
[1641468836716,4.0,147.94,147.9,27.66479]
[1641468836917,4.0,147.95,147.9,27.66479]
[1641468837117,3.39980485,147.97,147.9,27.66479]
[1641468837317,4.0,147.95,147.9,27.66479]
[1641468837518,31.66479,147.96,147.9,27.66479]
[1641468837920,27.66479,147.96,147.9,27.66479]
[1641468838119,31.66479,147.96,147.9,27.66479]
[1641468838318,4.0,147.95,147.9,27.66479]
[1641468838818,27.66479,147.96,147.9,27.66479]
[1641468839418,27.66479,147.96,147.87,6.75219446]
[1641468839419,4.0,147.95,147.87,6.75219446]
[1641468839621,27.66479,147.96,147.84,20.85842354]
[1641468839819,4.0,147.93,147.84,20.85842354]
[1641468840021,5.23,147.93,147.84,20.85842354]
[1641468840222,4.0,147.9,147.84,20.85842354]
[1641468840620,5.23,147.93,147.84,20.85842354]
[1641468840621,4.0,147.91,147.84,20.85842354]
[1641468840820,4.0,147.92,147.84,6.7535625]
[1641468841421,27.66479,147.91,147.84,6.7535625]
[1641468843831,4.0,147.9,147.84,6.7535625]
[1641468844531,4.0,147.89,147.84,6.7535625]
[1641468844730,4.0,147.87,147.84,6.7535625]
[1641468844931,4.0,147.86,147.84,6.7535625]
[1641468845731,4.0,147.86,147.81,27.66479]
[1641468846132,61.27039,147.91,147.81,27.66479]
[1641468846334,4.0,147.85,147.76,107.32638503]
[1641468846531,4.0,147.85,147.76,40.15498503]
[1641468846733,4.0,147.84,147.76,40.15498503]
[1641468847133,4.0,147.84,147.77,1.34042789]
[1641468847533,27.66479,147.82,147.77,1.34042789]
[1641468847733,31.66479,147.82,147.77,1.34042789]
[1641468848134,27.66479,147.82,147.75,14.10486104]
[1641468848336,31.66479,147.82,147.73,10.58019344]
[1641468848934,4.0,147.79,147.73,3.82161004]
[1641468849134,4.0,147.8,147.73,3.82161004]
[1641468849335,27.66479,147.82,147.73,3.82161004]
[1641468849538,4.0,147.8,147.73,4.72218468]
[1641468849736,4.0,147.81,147.73,4.72218468]
[1641468850334,4.0,147.8,147.73,4.72218468]
[1641468850536,4.0,147.79,147.73,4.72218468]
[1641468850736,4.0,147.78,147.71,4.72218468]
[1641468850935,4.0,147.76,147.71,4.72218468]
[1641468851337,4.0,147.77,147.71,4.72218468]
[1641468851536,4.0,147.8,147.71,4.72218468]
[1641468851736,27.66479,147.76,147.67,4.72218468]
[1641468852738,4.0,147.75,147.67,4.72218468]
[1641468853637,4.0,147.75,147.65,39.14921433]
[1641468853836,4.0,147.75,147.65,11.48442433]
[1641468854536,4.0,147.74,147.65,11.48442433]
[1641468854837,4.0,147.75,147.65,11.48442433]
[1641468855737,27.66479,147.73,147.65,11.48442433]
[1641468855940,27.66479,147.73,147.65,4.72218468]
[1641468857039,27.66479,147.76,147.67,4.72218468]
[1641468857239,69.2144,147.82,147.68,10.76063956]
[1641468857441,65.2144,147.82,147.69,38.0802]
[1641468857842,27.66479,147.82,147.72,27.66479]
[1641468859241,27.66479,147.82,147.73,6.05593485]
[1641468859641,31.66479,147.82,147.73,6.05593485]
[1641468860242,27.66479,147.82,147.73,6.05593485]
[1641468860444,27.66479,147.82,147.72,32.38697468]
[1641468860944,4.0,147.81,147.72,32.38697468]
[1641468861545,4.0,147.81,147.73,6.05877358]
[1641468861945,4.0,147.8,147.73,6.05877358]
[1641468862347,4.0,147.8,147.74,4.72218468]
[1641468862846,4.0,147.81,147.74,4.72218468]
[1641468863345,4.0,147.81,147.72,32.38697468]
[1641468864149,4.0,147.81,147.72,27.66479]
[1641468865353,4.0,147.8,147.72,27.66479]
[1641468866060,10.117,147.81,147.72,27.66479]
[1641468866259,31.66479,147.82,147.72,27.66479]
[1641468866457,27.66479,147.82,147.72,27.66479]
[1641468866658,4.0,147.78,147.7,4.72218468]
[1641468866857,27.66479,147.82,147.62,67.1243]
[1641468866858,4.0,147.77,147.71,4.72218468]
[1641468867059,4.0,147.75,147.71,4.72218468]
[1641468867459,4.0,147.76,147.71,4.72218468]
[1641468867662,4.0,147.76,147.69,6.06331294]
[1641468867864,6.76315434,147.79,147.69,6.06331294]
[1641468868062,27.66479,147.73,147.69,6.06331294]
[1641468868263,27.66479,147.73,147.69,4.72218468]
[1641468868461,27.66479,147.73,147.68,4.72218468]
[1641468869265,27.66479,147.73,147.69,4.72218468]
[1641468870362,27.66479,147.73,147.68,4.72218468]
[1641468871363,27.66479,147.73,147.7,4.72218468]
[1641468872063,27.66479,147.75,147.72,0.53508893]
[1641468872264,27.66479,147.75,147.71,4.72218468]
[1641468872464,27.66479,147.75,147.72,0.53508893]
[1641468872666,10.22806541,147.79,147.72,0.53508893]
[1641468872865,4.72218468,147.8,147.74,0.53508893]
[1641468873066,4.72218468,147.8,147.71,4.72218468]
[1641468873067,4.72218468,147.8,147.75,0.53508893]
[1641468873465,4.72218468,147.8,147.74,4.0]
[1641468873666,4.72218468,147.82,147.79,0.53508893]
[1641468873866,8.468e-05,147.82,147.81,28.19987893]
[1641468874470,3.90494572,147.85,147.81,28.19987893]
[1641468874669,27.66479,147.9,147.83,0.53508893]
[1641468874868,31.12970107,147.9,147.83,0.53508893]
[1641468875070,27.66479,147.9,147.81,29.54265593]
[1641468875271,3.46491107,147.89,147.81,1.342777]
[1641468875873,6.86410855,147.89,147.79,0.53508893]
[1641468876074,3.46491107,147.87,147.78,31.3927]
[1641468876273,3.46491107,147.87,147.77,0.53508893]
[1641468876475,3.46491107,147.85,147.76,0.53508893]
[1641468876674,3.46491107,147.86,147.74,72.15485099]
[1641468876874,5.445,147.89,147.79,1.88273275]
[1641468877077,3.46491107,147.87,147.79,1.34764382]
[1641468878076,27.66479,147.86,147.79,1.88273275]
[1641468878479,27.66479,147.86,147.79,0.53508893]
[1641468879280,27.66479,147.86,147.75,10.7584065]
[1641468879480,27.66479,147.86,147.79,0.53508893]
[1641468879680,27.66479,147.86,147.78,0.53508893]
[1641468880082,27.66479,147.86,147.76,1.34653512]
[1641468880283,34.29579,147.86,147.76,1.34653512]
[1641468880682,34.29579,147.86,147.75,8.10494162]
[1641468880883,3.46491107,147.85,147.75,8.64003055]
[1641468881083,3.46491107,147.84,147.75,8.10494162]
[1641468881283,3.46491107,147.85,147.75,8.64003055]
[1641468881483,3.46491107,147.85,147.76,0.53508893]
[1641468881685,3.46491107,147.85,147.75,1.34653512]
[1641468881885,3.46491107,147.85,147.77,0.53508893]
[1641468882083,3.46491107,147.85,147.75,1.34653512]
[1641468882287,3.46491107,147.85,147.77,0.53508893]
[1641468882483,3.46491107,147.85,147.78,0.53508893]
[1641468882683,3.46491107,147.85,147.78,1.88162405]
[1641468883084,3.46491107,147.85,147.78,1.34653512]
[1641468883583,3.46491107,147.85,147.77,0.53508893]
[1641468884283,3.46491107,147.85,147.78,1.34653512]
[1641468885084,61.96058,147.86,147.79,0.53508893]
[1641468885284,55.32958,147.86,147.78,1.34653512]
[1641468885485,55.32958,147.86,147.8,0.53508893]
[1641468886090,55.32958,147.86,147.78,27.66479]
[1641468886289,55.32958,147.86,147.8,0.53508893]
[1641468886690,55.32958,147.86,147.78,27.66479]
[1641468886891,55.32958,147.86,147.8,0.53508893]
[1641468887595,55.32958,147.86,147.79,1.34700739]
[1641468887793,55.32958,147.86,147.81,1.34700739]
[1641468889794,55.32958,147.86,147.79,1.88209632]
[1641468890295,55.32958,147.86,147.8,1.34700739]
[1641468891802,55.32958,147.86,147.79,1.34700739]
[1641468894906,55.32958,147.86,147.78,0.53508893]
[1641468896410,55.32958,147.86,147.79,1.34643189]
[1641468897711,3.46491107,147.81,147.79,1.34643189]
[1641468897912,3.46491107,147.81,147.74,3.82097574]
[1641468898113,3.46491107,147.79,147.77,1.3467208]
[1641468898514,31.12970107,147.79,147.77,2.08e-05]
[1641468898915,31.12970107,147.79,147.69,10.57715919]
[1641468899114,31.12970107,147.79,147.69,6.75618345]
[1641468899616,36.61870107,147.79,147.69,6.75618345]
[1641468899817,3.46491107,147.78,147.69,7.29127238]
[1641468900016,3.46491107,147.78,147.69,0.53508893]
[1641468900419,27.66479,147.76,147.69,0.53508893]
[1641468901521,27.66479,147.76,147.68,10.57715919]
[1641468901720,27.66479,147.76,147.69,0.53508893]
[1641468902422,27.66479,147.76,147.68,10.57715919]
[1641468902623,27.66479,147.76,147.68,59.48382187]
[1641468902922,27.66479,147.76,147.72,0.53508893]
[1641468903221,27.66479,147.76,147.68,63.48382187]
[1641468903422,27.66479,147.79,147.68,21.33779875]
[1641468903921,27.66479,147.79,147.69,4.0]
[1641468904125,27.66479,147.79,147.7,4.0]
[1641468904322,27.66479,147.79,147.74,0.53508893]
[1641468904525,27.66479,147.79,147.75,0.53508893]
[1641468904722,27.66479,147.82,147.77,0.53508893]
[1641468904923,27.66479,147.82,147.71,31.66479]
[1641468905122,27.66479,147.82,147.72,6.7588118]
[1641468905522,27.66479,147.82,147.77,0.53508893]
[1641468905923,27.66479,147.82,147.79,0.53508893]
[1641468906124,27.66479,147.82,147.78,0.53508893]
[1641468906325,27.66479,147.82,147.76,0.53508893]
[1641468906526,27.66479,147.82,147.75,14.26030184]
[1641468906828,27.66479,147.82,147.74,0.53508893]
[1641468906829,27.66479,147.82,147.77,14.26030184]
[1641468907525,27.66479,147.82,147.75,14.26030184]
[1641468907925,31.12970107,147.82,147.75,14.26030184]
[1641468908125,27.66479,147.82,147.75,14.26030184]
[1641468908327,27.66479,147.82,147.77,0.53508893]
[1641468908626,27.66479,147.82,147.76,0.53508893]
[1641468908826,27.66479,147.82,147.74,14.79539077]
[1641468909225,27.66479,147.82,147.74,14.26030184]
[1641468909426,27.66479,147.82,147.74,14.79539077]
[1641468910029,27.66479,147.82,147.73,10.57715919]
[1641468910030,3.46491107,147.81,147.73,24.83746103]
[1641468910226,31.12970107,147.82,147.73,24.83746103]
[1641468910426,27.66479,147.77,147.73,24.83746103]
[1641468910625,27.66479,147.77,147.73,21.01648529]
[1641468910826,31.12970107,147.77,147.73,21.01648529]
[1641468911030,27.66479,147.77,147.71,14.26030184]
[1641468911233,3.46491107,147.76,147.71,14.26030184]
[1641468912032,3.46491107,147.76,147.66,24.83746103]
[1641468912432,27.66479,147.73,147.66,25.37254996]
[1641468912635,3.46491107,147.71,147.66,24.83746103]
[1641468912836,34.43068986,147.73,147.66,24.83746103]
[1641468913033,6.76704449,147.71,147.63,48.91226068]
[1641468913236,3.46491107,147.68,147.65,14.25483121]
[1641468913633,3.46491107,147.66,147.65,14.25483121]
[1641468914034,3.46491107,147.67,147.62,37.7321627]
[1641468914234,3.46491107,147.64,147.62,37.7321627]
[1641468914436,27.66479,147.63,147.57,37.7321627]
[1641468915637,3.46491107,147.58,147.5,38.26725163]
[1641468915837,3.46491107,147.58,147.5,37.7321627]
[1641468915838,3.46491107,147.56,147.5,37.7321627]
[1641468916036,6.7743793,147.55,147.5,37.7321627]
[1641468916237,3.46491107,147.53,147.5,37.7321627]
[1641468916437,55.32958,147.51,147.5,37.7321627]
[1641468916639,55.32958,147.51,147.44,0.53508893]
[1641468917036,55.32958,147.51,147.45,0.53508893]
[1641468917239,55.32958,147.51,147.44,0.53508893]
[1641468917437,55.32958,147.51,147.43,37.7321627]
[1641468918039,55.32958,147.51,147.41,0.53508893]
[1641468918641,55.32958,147.51,147.44,0.53508893]
[1641468919745,55.32958,147.51,147.4,27.66479]
[1641468919943,55.32958,147.51,147.41,0.53508893]
[1641468921547,55.32958,147.51,147.4,27.66479]
[1641468921844,55.32958,147.51,147.43,0.53508893]
[1641468922045,55.32958,147.51,147.4,27.66479]
[1641468922247,55.32958,147.51,147.44,0.53508893]
[1641468922845,55.32958,147.51,147.42,0.53508893]
[1641468923449,58.79449107,147.51,147.4,0.53508893]
[1641468923648,30.24664109,147.41,147.34,37.7321627]
[1641468923848,30.24664109,147.41,147.33,37.50049961]
[1641468923849,10.25078288,147.35,147.33,37.50049961]
[1641468924047,10.25078288,147.35,147.28,36.77137493]
[1641468924250,10.25078288,147.35,147.29,0.53508893]
[1641468924447,10.25078288,147.35,147.28,36.77137493]
[1641468924648,27.66479,147.29,147.28,36.77137493]
[1641468924862,27.66479,147.29,147.19,264.61218763]
[1641468924863,27.66479,147.29,147.19,260.61218763]
[1641468925050,27.66479,147.29,147.23,0.53508893]
[1641468925249,27.66479,147.29,147.17,4.0]
[1641468925449,27.66479,147.29,147.22,0.53508893]
[1641468925651,27.66479,147.29,147.23,0.53508893]
[1641468925850,27.66479,147.29,147.18,4.0]
[1641468926050,27.66479,147.29,147.23,0.53508893]
[1641468926351,27.66479,147.29,147.17,4.0]
[1641468926551,27.66479,147.25,147.23,0.53508893]
[1641468926751,27.66479,147.25,147.18,4.0]
[1641468926952,27.66479,147.25,147.23,0.53508893]
[1641468927356,27.66479,147.25,147.22,0.53508893]
[1641468927954,27.66479,147.25,147.16,4.0]
[1641468928154,20.2433113,147.25,147.21,0.53508893]
[1641468928557,27.66479,147.22,147.21,0.53508893]
[1641468929358,27.66479,147.22,147.15,4.0]
[1641468929758,27.66479,147.22,147.18,0.53508893]
[1641468930061,27.66479,147.22,147.15,4.0]
[1641468930258,27.66479,147.22,147.14,27.66479]
[1641468930460,27.66479,147.22,147.19,0.53508893]
[1641468930659,27.66479,147.22,147.18,0.53508893]
[1641468930860,27.66479,147.22,147.15,4.0]
[1641468931060,32.08679,147.22,147.15,4.0]
[1641468931261,32.08679,147.22,147.2,0.53508893]
[1641468931463,32.08679,147.22,147.16,4.0]
[1641468932163,32.08679,147.22,147.2,0.53508893]
[1641468934767,32.08679,147.22,147.14,31.66479]
[1641468934970,32.08679,147.22,147.11,72.07332321]
[1641468935170,32.08679,147.22,147.11,65.2863]
[1641468935467,10.25469923,147.21,147.12,0.53508893]
[1641468935669,6.79163271,147.17,147.12,0.53508893]
[1641468935870,6.79163271,147.17,147.06,4.0]
[1641468936071,6.79163271,147.17,147.12,0.53508893]
[1641468936270,6.79163271,147.17,147.07,4.0]
[1641468936271,6.79163271,147.17,147.09,0.53508893]
[1641468936675,27.66479,147.15,147.06,27.66479]
[1641468936877,27.18129926,147.12,147.03,27.66479]
[1641468937477,33.75829926,147.12,147.03,27.66479]
[1641468938278,37.75829926,147.12,147.03,27.66479]
[1641468938480,33.75829926,147.12,147.03,27.66479]
[1641468938680,37.75829926,147.12,147.03,27.66479]
[1641468938881,27.66479,147.1,147.03,27.66479]
[1641468939279,27.66479,147.1,147.0,27.66479]
[1641468939481,6.79925208,147.01,146.96,0.08]
[1641468939881,6.79832761,147.03,146.96,0.08]
[1641468940081,10.79717238,147.05,146.96,0.08]
[1641468940480,4.0,147.04,146.96,0.08]
[1641468940883,27.66479,147.01,146.96,0.08]
[1641468941083,4.0,147.08,146.98,6.79301678]
[1641468941284,4.0,147.08,146.96,6.87370903]
[1641468942889,27.66479,147.08,146.99,27.66479]
[1641468943887,6.79117148,147.18,147.02,12.29979297]
[1641468944085,4.0,147.22,146.99,27.66479]
[1641468944286,6.79301678,147.14,146.99,27.66479]
[1641468944492,4.0,147.16,147.01,6.79163271]
[1641468944685,4.0,147.17,147.03,6.79047975]
[1641468944887,27.66479,147.18,147.1,27.66479]
[1641468946591,34.45480867,147.21,147.1,27.66479]
[1641468946791,27.66479,147.21,147.14,27.66479]
[1641468947595,27.66479,147.21,147.1,34.45204354]
[1641468947995,27.66479,147.21,147.1,27.66479]
[1641468947996,31.66479,147.21,147.1,27.66479]
[1641468948794,27.66479,147.21,147.1,27.66479]
[1641468949796,31.66479,147.21,147.1,27.66479]
[1641468950596,27.66479,147.21,147.1,27.66479]
[1641468950795,4.0,147.19,147.09,27.66479]
[1641468950995,55.32958,147.21,147.09,27.66479]
[1641468951299,10.79140208,147.18,147.09,27.66479]
[1641468951495,6.79140208,147.18,147.09,27.66479]
[1641468952394,10.79140208,147.18,147.09,27.66479]
[1641468952596,4.0,147.12,147.07,31.4049]
[1641468952794,4.0,147.15,147.04,27.66479]
[1641468952994,27.66479,147.13,147.04,27.66479]
[1641468953594,31.66479,147.13,147.04,27.66479]
[1641468955897,31.66479,147.13,147.04,32.28157363]
[1641468956295,27.66479,147.13,147.04,32.28157363]
[1641468956496,27.66479,147.13,147.04,27.66479]
[1641468956896,27.66479,147.13,147.06,5.50862149]
[1641468957097,4.61678363,147.19,147.06,6.78932718]
[1641468957500,8.61678363,147.21,147.06,6.78932718]
[1641468957898,4.61678363,147.21,147.06,6.78932718]
[1641468958197,4.0,147.19,147.06,6.78932718]
[1641468958399,8.479,147.19,147.11,4.61678363]
[1641468958997,27.66479,147.18,147.11,4.61678363]
[1641468959397,27.66479,147.18,147.09,4.61678363]
[1641468960604,4.0,147.16,147.09,4.61678363]
[1641468960802,4.0,147.17,147.08,4.61678363]
[1641468961103,27.66479,147.15,147.08,4.61678363]
[1641468961502,27.66479,147.15,147.06,4.61678363]
[1641468962302,27.66479,147.15,147.07,4.61678363]
[1641468963107,27.66479,147.15,147.08,4.61678363]